fUST/lending_fUST_20260609
["ID","MTS","AMOUNT","RATE_DAILY","PERIOD"]
[424477797,1780953044000,-522.10288398,0.0001897,2]
[424477796,1780953044000,-763.66368112,0.0001897,2]
[424477880,1780953045000,-500.0,0.00019178,2]
[424477875,1780953045000,-500.0,0.00019178,2]
[424477891,1780953045000,-215.93047,0.00019178,2]
[424477893,1780953045000,-215.93047,0.00019178,2]
[424477892,1780953045000,-215.93047,0.00019178,2]
[424477877,1780953045000,-500.0,0.00019178,2]
[424477876,1780953045000,-500.0,0.00019178,2]
[424477873,1780953045000,-500.0,0.00019178,2]
[424477870,1780953045000,-300.0,0.00019178,5]
[424477874,1780953045000,-500.0,0.00019178,2]
[424477883,1780953045000,-215.93047,0.00019178,2]
[424477881,1780953045000,-215.93047,0.00019178,2]
[424477882,1780953045000,-215.93047,0.00019178,2]
[424477900,1780953045000,-215.930477,0.00019178,2]
[424477888,1780953045000,-215.93047,0.00019178,2]
[424477886,1780953045000,-215.93047,0.00019178,2]
[424477890,1780953045000,-215.93047,0.00019178,2]
[424477887,1780953045000,-215.93047,0.00019178,2]
[424477884,1780953045000,-215.93047,0.00019178,2]
[424477889,1780953045000,-215.93047,0.00019178,2]
[424477894,1780953045000,-215.93047,0.00019178,2]
[424477896,1780953045000,-215.93047,0.00019178,2]
[424477906,1780953045000,-5000.0,0.0001925,3]
[424477901,1780953045000,-151.0,0.00019178,2]
[424477898,1780953045000,-215.93047,0.00019178,2]
[424477899,1780953045000,-215.93047,0.00019178,2]
[424477872,1780953045000,-513.99,0.00019178,2]
[424477885,1780953045000,-215.93047,0.00019178,2]
[424477869,1780953045000,-650.0,0.00019178,5]
[424477842,1780953045000,-324.54451412,0.00019041,2]
[424477867,1780953045000,-650.0,0.00019111,2]
[424477895,1780953045000,-215.93047,0.00019178,2]
[424477850,1780953045000,-168.0,0.0001905,2]
[424477851,1780953045000,-292.0,0.0001905,2]
[424477843,1780953045000,-377.6836659,0.00019041,2]
[424477845,1780953045000,-469.13736769,0.00019041,2]
[424477849,1780953045000,-153.0,0.0001905,2]
[424477852,1780953045000,-151.0,0.0001905,2]
[424477847,1780953045000,-459.54312347,0.00019041,2]
[424477841,1780953045000,-375.01243677,0.00019041,2]
[424477844,1780953045000,-289.62727815,0.00019041,2]
[424477853,1780953045000,-158.0,0.0001905,2]
[424477848,1780953045000,-380.95467651,0.00019041,2]
[424477846,1780953045000,-473.11240741,0.00019041,2]
[424477855,1780953045000,-160.28257977,0.00019091,2]
[424477854,1780953045000,-243.70781667,0.00019091,2]
[424477857,1780953045000,-236.65768252,0.00019091,2]
[424477856,1780953045000,-280.78012061,0.00019091,2]
[424477865,1780953045000,-207.89,0.000191,2]
[424477858,1780953045000,-222.40925288,0.00019093,2]
[424477866,1780953045000,-177.76853558,0.00019111,2]
[424477859,1780953045000,-208.34094904,0.00019093,2]
[424477860,1780953045000,-271.17077439,0.00019093,2]
[424477861,1780953045000,-216.12633387,0.00019093,2]
[424477862,1780953045000,-151.9659633,0.00019094,2]
[424477864,1780953045000,-185.65355345,0.00019095,2]
[424477863,1780953045000,-295.62991286,0.00019095,2]
[424477868,1780953045000,-233.42359972,0.00019116,2]
[424477878,1780953045000,-500.0,0.00019178,2]
[424477879,1780953045000,-2820.92,0.00019178,2]
[424477871,1780953045000,-500.0,0.00019178,2]
[424477904,1780953045000,-180.578275,0.00019178,2]
[424477922,1780953045000,-852.94966096,0.0001933,2]
[424477902,1780953045000,-151.0,0.00019178,2]
[424477940,1780953045000,-673.45211107,0.00019333,2]
[424477941,1780953045000,-857.97817057,0.00019333,2]
[424477937,1780953045000,-3700.95310572,0.00019333,2]
[424477942,1780953045000,-612.60668971,0.00019339,2]
[424477938,1780953045000,-1466.90900671,0.00019333,2]
[424477954,1780953045000,-158.84648094,0.00019402,2]
[424477944,1780953045000,-627.70684982,0.00019357,2]
[424477946,1780953045000,-612.43955037,0.000194,2]
[424477905,1780953045000,-781.43,0.00019178,2]
[424477945,1780953045000,-160.0,0.0001939,4]
[424477947,1780953045000,-663.49221354,0.000194,2]
[424477948,1780953045000,-452.35391956,0.000194,2]
[424477949,1780953045000,-689.31468521,0.000194,2]
[424477939,1780953045000,-725.96527474,0.00019333,2]
[424477950,1780953045000,-454.50181186,0.000194,2]
[424477951,1780953045000,-595.88116859,0.000194,2]
[424477952,1780953045000,-639.51714669,0.000194,2]
[424477956,1780953045000,-204.66314511,0.00019402,2]
[424477955,1780953045000,-187.74509805,0.00019402,2]
[424477964,1780953045000,-561.74334825,0.00019402,2]
[424477965,1780953045000,-571.43201477,0.00019402,2]
[424477959,1780953045000,-562.51865516,0.00019402,2]
[424477957,1780953045000,-469.95600808,0.00019402,2]
[424477958,1780953045000,-741.95961444,0.00019402,2]
[424477960,1780953045000,-566.52549885,0.00019402,2]
[424477962,1780953045000,-630.81654322,0.00019402,2]
[424477963,1780953045000,-616.38037607,0.00019402,2]
[424477961,1780953045000,-625.51649025,0.00019402,2]
[424477953,1780953045000,-617.93181002,0.000194,2]
[424477936,1780953045000,-2678.60066827,0.00019333,2]
[424477943,1780953045000,-3067.17314451,0.00019354,2]
[424477934,1780953045000,-726.95466568,0.00019333,2]
[424477897,1780953045000,-215.93047,0.00019178,2]
[424477903,1780953045000,-151.0,0.00019178,2]
[424477908,1780953045000,-1019.06682889,0.00019312,2]
[424477935,1780953045000,-682.63271033,0.00019333,2]
[424477918,1780953045000,-1018.21824149,0.0001933,2]
[424477913,1780953045000,-551.8747643,0.00019312,2]
[424477910,1780953045000,-709.84626676,0.00019312,2]
[424477909,1780953045000,-684.273634,0.00019312,2]
[424477912,1780953045000,-798.74320987,0.00019312,2]
[424477914,1780953045000,-709.03213435,0.00019312,2]
[424477907,1780953045000,-714.40892297,0.00019312,2]
[424477911,1780953045000,-876.00850828,0.00019312,2]
[424477919,1780953045000,-696.13717864,0.0001933,2]
[424477916,1780953045000,-635.25185735,0.0001933,2]
[424477920,1780953045000,-620.96365147,0.0001933,2]
[424477917,1780953045000,-696.62979026,0.0001933,2]
[424477915,1780953045000,-303.24924394,0.0001933,2]
[424477931,1780953045000,-623.09614617,0.00019333,2]
[424477932,1780953045000,-860.58445872,0.00019333,2]
[424477930,1780953045000,-637.13700988,0.00019333,2]
[424477927,1780953045000,-629.09974311,0.00019333,2]
[424477925,1780953045000,-765.33097309,0.00019333,2]
[424477933,1780953045000,-565.80154548,0.00019333,2]
[424477929,1780953045000,-369.69225095,0.00019333,2]
[424477923,1780953045000,-832.37416004,0.0001933,2]
[424477928,1780953045000,-612.35933237,0.00019333,2]
[424477924,1780953045000,-691.44802343,0.0001933,2]
[424477921,1780953045000,-852.03292303,0.0001933,2]
[424477926,1780953045000,-410.6100083,0.00019333,2]
[424477976,1780953046000,-500.0,0.00019452,2]
[424477986,1780953046000,-308.21294605,0.00019452,2]
[424477989,1780953046000,-320.56515955,0.00019452,2]
[424477991,1780953046000,-561.56024121,0.00019452,2]
[424477984,1780953046000,-189.32725264,0.00019452,2]
[424477983,1780953046000,-335.0982326,0.00019452,2]
[424477981,1780953046000,-351.46970912,0.00019452,2]
[424477975,1780953046000,-500.0,0.00019452,2]
[424477973,1780953046000,-500.0,0.00019452,2]
[424477977,1780953046000,-2820.92,0.00019452,2]
[424477978,1780953046000,-500.0,0.00019452,2]
[424477971,1780953046000,-500.0,0.00019452,2]
[424477980,1780953046000,-231.28193789,0.00019452,2]
[424477969,1780953046000,-500.0,0.00019452,2]
[424477979,1780953046000,-781.43,0.00019452,2]
[424477970,1780953046000,-500.0,0.00019452,2]
[424477968,1780953046000,-300.0,0.00019452,5]
[424477967,1780953046000,-492.0,0.00019446,2]
[424477966,1780953046000,-1000.0,0.00019446,2]
[424477993,1780953046000,-162.33316513,0.00019454,2]
[424477974,1780953046000,-500.0,0.00019452,2]
[424477987,1780953046000,-355.8406003,0.00019452,2]
[424477982,1780953046000,-354.6285651,0.00019452,2]
[424477985,1780953046000,-487.41563333,0.00019452,2]
[424478016,1780953046000,-231512.18177266,0.000195,2]
[424478022,1780953046000,-837.82014782,0.000195,2]
[424478011,1780953046000,-521.32910068,0.00019475,2]
[424478015,1780953046000,-466.84719943,0.00019478,2]
[424478013,1780953046000,-305.32408739,0.00019475,2]
[424478001,1780953046000,-160.22679213,0.00019457,2]
[424477999,1780953046000,-303.9319266,0.00019456,2]
[424477998,1780953046000,-473.31536505,0.00019454,2]
[424477997,1780953046000,-432.25266775,0.00019454,2]
[424477995,1780953046000,-167.84846503,0.00019454,2]
[424477988,1780953046000,-162.30732968,0.00019452,2]
[424478005,1780953046000,-223.84590749,0.00019457,2]
[424478003,1780953046000,-371.3071069,0.00019457,2]
[424477994,1780953046000,-308.91520987,0.00019454,2]
[424477996,1780953046000,-542.34154877,0.00019454,2]
[424478006,1780953046000,-591.25982572,0.00019457,2]
[424477992,1780953046000,-444.81850575,0.00019454,2]
[424478007,1780953046000,-416.68189809,0.00019457,2]
[424478020,1780953046000,-1393.27389609,0.000195,2]
[424478009,1780953046000,-338.50813006,0.0001947,2]
[424478008,1780953046000,-228.63604299,0.00019458,2]
[424478010,1780953046000,-355.53707116,0.00019473,2]
[424478067,1780953048000,-383.40835739,0.0001955,2]
[424478071,1780953048000,-1273.83353611,0.00019671,2]
[424478066,1780953048000,-199.66747036,0.00019549,2]
[424478070,1780953048000,-901.80930708,0.00019671,2]
[424478069,1780953048000,-175.644283,0.00019551,2]
[424478068,1780953048000,-334.61019429,0.0001955,2]
[424478064,1780953048000,-158.37366948,0.00019549,2]
[424478063,1780953048000,-258.56905509,0.00019502,2]
[424478060,1780953048000,-283.19980698,0.00019502,2]
[424478062,1780953048000,-312.62089542,0.00019502,2]
[424478058,1780953048000,-849.0,0.000195,15]
[424478059,1780953048000,-10000.0,0.000195,2]
[424478072,1780953048000,-855.34204251,0.00019671,2]
[424478057,1780953048000,-16230.75443781,0.000195,2]
[424478052,1780953048000,-7347.89236145,0.000195,2]
[424478050,1780953048000,-600.0,0.00017884,2]
[424478061,1780953048000,-315.9079891,0.00019502,2]
[424478074,1780953048000,-720.0,0.00019672,2]
[424478073,1780953048000,-886.29016793,0.00019671,2]
[424478085,1780953048000,-908.6933321,0.00019693,2]
[424478090,1780953048000,-1072.47271321,0.00019693,2]
[424478092,1780953048000,-784.63356227,0.00019717,2]
[424478086,1780953048000,-3348.25083533,0.00019693,2]
[424478093,1780953048000,-7655.44590886,0.0001972,2]
[424478089,1780953048000,-907.45659342,0.00019693,2]
[424478088,1780953048000,-1833.63625839,0.00019693,2]
[424478087,1780953048000,-4626.19138215,0.00019693,2]
[424478083,1780953048000,-765.44916546,0.00019693,2]
[424478082,1780953048000,-786.37467888,0.00019693,2]
[424478091,1780953048000,-765.75836213,0.00019699,2]
[424478080,1780953048000,-1066.1870762,0.0001969,2]
[424478084,1780953048000,-1075.73057339,0.00019693,2]
[424478078,1780953048000,-776.20456434,0.0001969,2]
[424478079,1780953048000,-1065.04115378,0.0001969,2]
[424478077,1780953048000,-1272.77280186,0.0001969,2]
[424478076,1780953048000,-870.1714733,0.0001969,2]
[424478075,1780953048000,-794.06482169,0.0001969,2]
[424478081,1780953048000,-1040.46770005,0.0001969,2]
[424478095,1780953049000,-205.70151287,0.00019726,2]
[424478094,1780953049000,-2190.75777778,0.0001972,2]
[424478099,1780953069000,250.0,0.00023988,30]
[424478100,1780953070000,497.066118,0.00023988,30]
[424478103,1780953368000,150.0,0.00023988,30]
[424478112,1780953724000,1889.94404141,7.6e-05,2]
[424478162,1780954232000,-500.0,9.995e-05,2]
[424478153,1780954232000,-300.0,9.995e-05,2]
[424478155,1780954232000,-500.0,9.995e-05,2]
[424478159,1780954232000,-630.16434606,9.995e-05,2]
[424478149,1780954232000,-932.3401537,9.703e-05,2]
[424478157,1780954232000,-500.0,9.995e-05,2]
[424478147,1780954232000,-4067.6598463,9.703e-05,2]
[424478161,1780954232000,-500.0,9.995e-05,2]
[424478151,1780954232000,-300.0,9.995e-05,2]
[424478168,1780954232000,-500.0,9.998e-05,2]
[424478173,1780954232000,-133.9313399,0.0001,2]
[424478166,1780954232000,-500.0,9.995e-05,2]
[424478164,1780954232000,-500.0,9.995e-05,2]
[424478175,1780954232000,-500.0,0.00010272,2]
[424478170,1780954232000,-2131.04332709,0.0001,2]
[424478176,1780954232000,-45.52229308,0.00010546,2]
[424478178,1780954232000,-454.47770692,0.00010546,2]
[424478180,1780954232000,-600.0,0.0001074,2]
[424478182,1780954232000,-366.78306268,0.00010995,2]
[424478275,1780954238000,-500.0,9.995e-05,2]
[424478277,1780954238000,-500.0,9.995e-05,2]
[424478279,1780954238000,-500.0,9.995e-05,2]
[424478278,1780954238000,-500.0,9.995e-05,2]
[424478280,1780954238000,-53.21693732,0.00010995,2]
[424478281,1780954238000,-720.0,0.00011814,2]
[424478283,1780954238000,-864.0,0.00012995,2]
[424478284,1780954238000,-760.320948,0.00013061,2]
[424478276,1780954238000,-500.0,9.995e-05,2]
[424478282,1780954238000,-300.0,0.00012094,2]
[424478285,1780954238000,-760.320948,0.00013611,2]
[424478288,1780954239000,-1250.902404,0.00013699,2]
[424478286,1780954239000,-500.0,0.00013698,2]
[424478287,1780954239000,-500.0,0.00013698,2]
[424478289,1780954239000,-1000.0,0.00013699,2]
[424478292,1780954239000,-166559.7558984,0.00014195,2]
[424478290,1780954239000,-760.320948,0.00014161,2]
[424478291,1780954239000,-2044.95351684,0.00014195,2]
[424478295,1780954239000,-861581.39360909,0.0001464,2]
[424478297,1780954239000,-186165.09933315,0.0001464,2]
[424478294,1780954239000,-1000.0,0.00014295,2]
[424478296,1780954239000,-5861.27790028,0.0001464,2]
[424478293,1780954239000,-269123.0425579,0.00014195,2]
[424478307,1780954241000,-2251.014864,0.0001464,2]
[424478306,1780954241000,-974.73856006,0.0001464,2]
[424478308,1780954241000,-7255.91344323,0.0001464,2]
[424478305,1780954241000,-4107.12926576,0.0001464,2]
[424478304,1780954241000,-296.63777288,0.0001464,2]
[424478303,1780954241000,-2007.40729712,9.895e-05,2]
[424478324,1780954246000,-2803.29945571,0.00014458,2]
[424478323,1780954246000,-529.65392859,0.00014458,2]
[424478325,1780954247000,-213.46134205,0.0001464,2]
[424478327,1780954247000,-432.51601163,0.00014699,2]
[424478328,1780954247000,-3447.55975526,0.000147,2]
[424478326,1780954247000,-173.05,0.0001464,2]
[424478332,1780954263000,500.0,9.994e-05,2]
[424478336,1780954263000,500.0,9.994e-05,2]
[424478337,1780954263000,65.31770707,9.994e-05,2]
[424478335,1780954263000,500.0,9.994e-05,2]
[424478333,1780954263000,204.55110837,9.994e-05,2]
[424478334,1780954263000,500.0,9.994e-05,2]
[424478349,1780955431000,-433.45811007,9.51e-05,2]
[424478350,1780955431000,-4566.54188993,9.51e-05,2]
[424478352,1780955431000,-500.0,9.996e-05,2]
[424478356,1780955431000,-177.79530309,0.0001,2]
[424478351,1780955431000,-531.24124625,9.996e-05,2]
[424478353,1780955431000,-500.0,9.996e-05,2]
[424478354,1780955431000,-500.0,9.996e-05,2]
[424478357,1780955431000,-9031.36749803,0.0001,2]
[424478358,1780955431000,-257.50320204,0.0001,2]
[424478355,1780955431000,-500.0,9.999e-05,2]
[424478400,1780955438000,-500.0,9.996e-05,2]
[424478408,1780955438000,-500.0,9.996e-05,2]
[424478405,1780955438000,-500.0,9.996e-05,2]
[424478404,1780955438000,-500.0,9.996e-05,2]
[424478406,1780955438000,-500.0,9.996e-05,2]
[424478403,1780955438000,-500.0,9.996e-05,2]
[424478402,1780955438000,-390.44997381,9.996e-05,2]
[424478401,1780955438000,-500.0,9.996e-05,2]
[424478399,1780955438000,-649.88299167,9.996e-05,2]
[424478398,1780955438000,-500.0,9.996e-05,2]
[424478407,1780955438000,-500.0,9.996e-05,2]
[424478396,1780955438000,-500.0,9.996e-05,2]
[424478395,1780955438000,-500.0,9.996e-05,2]
[424478393,1780955438000,-500.0,9.996e-05,2]
[424478391,1780955438000,-425.53458887,9.996e-05,2]
[424478392,1780955438000,-302.16498139,9.996e-05,2]
[424478394,1780955438000,-500.0,9.996e-05,2]
[424478390,1780955438000,-500.0,9.996e-05,2]
[424478389,1780955438000,-500.0,9.996e-05,2]
[424478387,1780955438000,-500.0,9.996e-05,2]
[424478397,1780955438000,-500.0,9.996e-05,2]
[424478388,1780955438000,-500.0,9.996e-05,2]
[424478410,1780955438000,-500.0,9.996e-05,2]
[424478412,1780955438000,-500.0,9.996e-05,2]
[424478409,1780955438000,-500.0,9.996e-05,2]
[424478432,1780955438000,-2696.0,0.0001,2]
[424478431,1780955438000,-14444.00389089,0.0001,2]
[424478427,1780955438000,-500.0,9.996e-05,2]
[424478428,1780955438000,-500.0,9.996e-05,2]
[424478429,1780955438000,-500.0,9.996e-05,2]
[424478426,1780955438000,-500.0,9.996e-05,2]
[424478424,1780955438000,-500.0,9.996e-05,2]
[424478425,1780955438000,-500.0,9.996e-05,2]
[424478423,1780955438000,-500.0,9.996e-05,2]
[424478430,1780955438000,-500.0,9.996e-05,2]
[424478417,1780955438000,-500.0,9.996e-05,2]
[424478419,1780955438000,-500.0,9.996e-05,2]
[424478414,1780955438000,-500.0,9.996e-05,2]
[424478418,1780955438000,-500.0,9.996e-05,2]
[424478416,1780955438000,-500.0,9.996e-05,2]
[424478415,1780955438000,-500.0,9.996e-05,2]
[424478422,1780955438000,-500.0,9.996e-05,2]
[424478413,1780955438000,-500.0,9.996e-05,2]
[424478421,1780955438000,-500.0,9.996e-05,2]
[424478411,1780955438000,-500.0,9.996e-05,2]
[424478420,1780955438000,-500.0,9.996e-05,2]
[424478448,1780955441000,-151.5,0.00013504,2]
[424478452,1780955441000,-151.5,0.00013504,2]
[424478444,1780955441000,-720.0,0.00011219,2]
[424478449,1780955441000,-151.5,0.00013504,2]
[424478445,1780955441000,-1700.61221694,0.00011641,2]
[424478440,1780955441000,-1146.1506425,0.0001,2]
[424478451,1780955441000,-151.5,0.00013504,2]
[424478446,1780955441000,-864.0,0.00012341,2]
[424478443,1780955441000,-600.0,0.00010199,2]
[424478447,1780955441000,-380.160474,0.00013247,2]
[424478442,1780955441000,-821.58560447,0.0001,2]
[424478450,1780955441000,-151.5,0.00013504,2]
[424478441,1780955441000,-2732.68500064,0.0001,2]
[424478460,1780955441000,-181.38505451,0.00014262,2]
[424478453,1780955441000,-159.84829767,0.00013504,2]
[424478464,1780955441000,-710.66587433,0.00014354,2]
[424478455,1780955441000,-1000.0,0.00013575,2]
[424478456,1780955441000,-1024.397452,0.00013699,2]
[424478462,1780955441000,-12370.82557647,0.00014354,2]
[424478458,1780955441000,-380.160474,0.00013805,2]
[424478457,1780955441000,-1000.0,0.00013699,2]
[424478454,1780955441000,-3558.4978971,0.0001351,2]
[424478461,1780955441000,-6045.4188395,0.00014354,2]
[424478463,1780955441000,-510.71739599,0.00014354,2]
[424478459,1780955441000,-672.46270104,0.00014,2]
[424478465,1780955441000,-558.0,0.00014354,2]
[424478477,1780955443000,-5589.94012964,0.00014354,2]
[424478474,1780955443000,-1832.07939292,9.9e-05,2]
[424478475,1780955443000,-3167.92060708,9.9e-05,2]
[424478480,1780955443000,-1909.34647797,0.00014354,2]
[424478481,1780955443000,-1172.17607391,0.00014354,2]
[424478479,1780955443000,-15810.53395227,0.00014354,2]
[424478476,1780955443000,-3758.92266043,0.00014354,2]
[424478482,1780955443000,-620.51122382,0.00014354,2]
[424478478,1780955443000,-695.7,0.00014354,2]
[424478495,1780955446000,-417.15472785,0.00014725,2]
[424478499,1780955446000,-43779.61934685,0.000148,2]
[424478498,1780955446000,-160.0,0.00014725,2]
[424478491,1780955446000,-579.4841714,0.00014454,2]
[424478501,1780955446000,-196.03007549,0.000149,2]
[424478497,1780955446000,-160.0,0.00014725,2]
[424478503,1780955446000,-1000.0,0.00014932,2]
[424478494,1780955446000,-6004.73643451,0.000147,2]
[424478493,1780955446000,-4434.83536789,0.00014691,2]
[424478492,1780955446000,-304.83196688,0.0001446,2]
[424478489,1780955446000,-380.160474,0.00014362,2]
[424478490,1780955446000,-9788.6821726,0.00014454,2]
[424478488,1780955446000,-74555.79441333,0.00014354,2]
[424478500,1780955446000,-9452.29618977,0.000149,2]
[424478502,1780955446000,-380.160474,0.0001492,2]
[424478496,1780955446000,-768.57031478,0.00014725,2]
[424478514,1780955446000,-9452.29618977,0.000153,2]
[424478513,1780955446000,-152.0,0.00015226,7]
[424478520,1780955446000,-3139.68046711,0.000156,2]
[424478519,1780955446000,-3763.13322945,0.000155,2]
[424478518,1780955446000,-9452.29618977,0.000155,2]
[424478517,1780955446000,-380.160474,0.00015478,2]
[424478516,1780955446000,-1885.20475619,0.00015457,2]
[424478511,1780955446000,-3763.13322945,0.000152,2]
[424478515,1780955446000,-3763.13322945,0.000153,2]
[424478509,1780955446000,-3208.03894132,0.00015131,2]
[424478510,1780955446000,-9452.29618977,0.000152,2]
[424478507,1780955446000,-9230.33679263,0.00015,2]
[424478506,1780955446000,-3763.13322945,0.00015,2]
[424478504,1780955446000,-244.0,0.00014932,2]
[424478505,1780955446000,-9452.29618977,0.00015,2]
[424478512,1780955446000,-152.0,0.00015226,7]
[424478508,1780955446000,-439.340622,0.00015068,2]
[424478521,1780955447000,-670.22,0.000156,2]
[424478522,1780955447000,-978.61104329,0.000156,2]
[424478601,1780956632000,-183.1585819,0.00013699,2]
[424478602,1780956632000,-512.198726,0.00013699,2]
[424478600,1780956632000,-500.0,0.00013662,2]
[424478595,1780956632000,-2308.18770348,0.00010163,2]
[424478599,1780956632000,-250.15849713,0.00011266,2]
[424478597,1780956632000,-151.0,0.00010581,2]
[424478603,1780956632000,-725.20457457,0.00013699,2]
[424478604,1780956632000,-274.79542543,0.00013699,2]
[424478617,1780956632000,-154.19,0.00014544,2]
[424478606,1780956632000,-500.0,0.00014252,2]
[424478607,1780956632000,-500.0,0.00014252,2]
[424478618,1780956632000,-103.35157772,0.00014546,2]
[424478615,1780956632000,-154.19,0.00014542,2]
[424478612,1780956632000,-500.0,0.00014252,2]
[424478614,1780956632000,-154.19,0.0001454,2]
[424478611,1780956632000,-500.0,0.00014252,2]
[424478613,1780956632000,-239.22944035,0.00014252,2]
[424478608,1780956632000,-420.0535565,0.00014252,2]
[424478609,1780956632000,-500.0,0.00014252,2]
[424478605,1780956632000,-500.0,0.00014252,2]
[424478610,1780956632000,-500.0,0.00014252,2]
[424478654,1780956638000,-157.67509102,0.000151,2]
[424478646,1780956638000,-4279.6278135,0.000148,2]
[424478641,1780956638000,-6108.0054767,0.00014604,2]
[424478652,1780956638000,-4279.6278135,0.000151,2]
[424478651,1780956638000,-458.69204,0.00015068,2]
[424478649,1780956638000,-4279.6278135,0.00015,2]
[424478648,1780956638000,-255.098879,0.00014905,2]
[424478653,1780956638000,-516.28705968,0.000151,2]
[424478655,1780956638000,-500.0,0.000151,2]
[424478660,1780956638000,-3100.16080188,0.000153,2]
[424478666,1780956638000,-151.5,0.00015352,2]
[424478656,1780956638000,-3100.16080188,0.000152,2]
[424478657,1780956638000,-152.0,0.00015228,7]
[424478658,1780956638000,-186.74585698,0.00015252,2]
[424478659,1780956638000,-4279.6278135,0.000153,2]
[424478661,1780956638000,-517.0,0.00015352,2]
[424478662,1780956638000,-517.0,0.00015352,2]
[424478663,1780956638000,-151.5,0.00015352,2]
[424478650,1780956638000,-3100.16080188,0.00015,2]
[424478665,1780956638000,-517.0,0.00015352,2]
[424478647,1780956638000,-6088.83036308,0.000149,2]
[424478625,1780956638000,-154.19,0.00014546,2]
[424478642,1780956638000,-4279.6278135,0.000147,2]
[424478664,1780956638000,-151.5,0.00015352,2]
[424478626,1780956638000,-154.18,0.00014548,2]
[424478624,1780956638000,-50.83842228,0.00014546,2]
[424478627,1780956638000,-154.19,0.00014548,2]
[424478629,1780956638000,-500.0,0.00014564,2]
[424478639,1780956638000,-7855.0748854,0.00014565,2]
[424478628,1780956638000,-495.64357942,0.00014564,2]
[424478630,1780956638000,-500.0,0.00014564,2]
[424478631,1780956638000,-262.98612612,0.00014564,2]
[424478633,1780956638000,-500.0,0.00014564,2]
[424478632,1780956638000,-500.0,0.00014564,2]
[424478634,1780956638000,-500.0,0.00014564,2]
[424478638,1780956638000,-3171.911121,0.00014565,2]
[424478635,1780956638000,-500.0,0.00014564,2]
[424478637,1780956638000,-193.1613905,0.00014565,2]
[424478636,1780956638000,-500.0,0.00014564,2]
[424478640,1780956638000,-2671.5000094,0.00014565,2]
[424478643,1780956638000,-160.0,0.00014704,2]
[424478644,1780956638000,-768.57031478,0.00014704,2]
[424478645,1780956638000,-417.15472785,0.00014704,2]
[424478667,1780956638000,-517.0,0.00015352,2]
[424478698,1780956638000,-1838.0,0.00015756,2]
[424478668,1780956638000,-517.0,0.00015352,2]
[424478691,1780956638000,-500.0,0.00015374,2]
[424478693,1780956638000,-3100.16080188,0.000155,2]
[424478692,1780956638000,-4279.6278135,0.000155,2]
[424478695,1780956638000,-4279.6278135,0.000156,2]
[424478696,1780956638000,-3100.16080188,0.000156,2]
[424478694,1780956638000,-255.098879,0.00015533,2]
[424478697,1780956638000,-500.0,0.00015648,2]
[424478699,1780956638000,-3639.0,0.00015756,2]
[424478712,1780956638000,-255.098879,0.0001616,2]
[424478705,1780956638000,-4279.6278135,0.000159,2]
[424478702,1780956638000,-858.871936,0.000158,2]
[424478709,1780956638000,-4279.6278135,0.000161,2]
[424478711,1780956638000,-600.0,0.00016115,2]
[424478706,1780956638000,-3100.16080188,0.000159,2]
[424478710,1780956638000,-3100.16080188,0.000161,2]
[424478703,1780956638000,-4279.6278135,0.000158,2]
[424478704,1780956638000,-3100.16080188,0.000158,2]
[424478707,1780956638000,-500.0,0.00015922,2]
[424478674,1780956638000,-517.0,0.00015352,2]
[424478689,1780956638000,-517.0,0.00015352,2]
[424478701,1780956638000,-472.091,0.00015756,2]
[424478708,1780956638000,-219.08915979,0.00016,2]
[424478700,1780956638000,-2208.0,0.00015756,2]
[424478690,1780956638000,-533.50156168,0.00015352,2]
[424478669,1780956638000,-151.5,0.00015352,2]
[424478670,1780956638000,-517.0,0.00015352,2]
[424478673,1780956638000,-241.93246848,0.00015352,2]
[424478672,1780956638000,-517.0,0.00015352,2]
[424478675,1780956638000,-517.0,0.00015352,2]
[424478676,1780956638000,-517.0,0.00015352,2]